bitfinex/quotes_ETHUSD_20250406
["timestamp","ask_amount","ask_price","bid_price","bid_amount"]
[1743912465199,7.39547524,1810.7,1810.5,3.86633]
[1743912465413,7.39547524,1810.7,1810.6,0.26861619]
[1743912465602,3.7260446,1810.8,1810.6,4.13473619]
[1743912466206,3.30276053,1810.8,1810.7,4.72613031]
[1743912466381,3.30276053,1810.8,1810.7,6.12611696]
[1743912466724,6.76062272,1811.4,1811.0,3.86523]
[1743912466897,6.76062272,1811.4,1811.0,9.02423]
[1743912467083,6.76062272,1811.4,1811.1,0.26861619]
[1743912467507,10.62505272,1811.4,1811.1,0.26861619]
[1743912467815,12.49551318,1811.4,1811.1,0.26861619]
[1743912468497,4.2153419,1811.3,1811.1,0.26861619]
[1743912470819,4.62481511,1811.3,1811.1,0.26861619]
[1743912472728,4.2153419,1811.3,1811.1,0.26861619]
[1743912473933,4.2153419,1811.3,1810.9,9.01647]
[1743912474143,4.2153419,1811.3,1811.0,0.26564228]
[1743912477522,8.0799719,1811.3,1811.0,0.26564228]
[1743912479801,11.9447919,1811.3,1811.0,0.26564228]
[1743912480002,14.04393646,1811.3,1811.0,0.26564228]
[1743912480205,10.17911646,1811.3,1811.0,0.26564228]
[1743912480436,8.0799719,1811.3,1811.0,0.26564228]
[1743912482234,3.86487,1811.2,1811.0,0.26564228]
[1743912482796,8.0799719,1811.3,1811.0,0.26564228]
[1743912483628,3.86463,1811.3,1811.0,0.26564228]
[1743912483837,3.86463,1811.3,1811.0,0.26207702]
[1743912484716,3.86473,1811.3,1811.0,0.26207702]
[1743912485902,7.72951,1811.3,1811.0,0.26207702]
[1743912486135,9.22008033,1811.3,1811.0,0.26207702]
[1743912490138,5.35530033,1811.3,1811.0,0.26207702]
[1743912491635,9.22012033,1811.3,1811.0,0.26207702]
[1743912492840,3.86484,1811.2,1811.0,0.26207702]
[1743912494034,3.86505,1811.1,1811.0,0.26207702]
[1743912494236,5.05957319,1811.1,1811.0,0.26207702]
[1743912494444,5.05957319,1811.1,1810.8,5.133]
[1743912494631,3.86505,1811.1,1811.0,0.26230711]
[1743912494831,3.86505,1811.1,1810.8,5.133]
[1743912495034,3.86505,1811.1,1811.0,0.26230711]
[1743912495641,4.66345,1811.1,1811.0,0.26230711]
[1743912496023,4.66345,1811.1,1810.7,9.80278]
[1743912496233,5.93781319,1811.1,1811.0,0.26241518]
[1743912496723,9.80302319,1811.1,1810.7,9.80278]
[1743912496910,9.80302319,1811.1,1810.8,0.43514854]
[1743912497525,9.80302319,1811.1,1810.9,0.17273336]
[1743912497959,9.80302319,1811.1,1811.0,0.26246923]
[1743912498316,9.80302319,1811.1,1810.7,9.80278]
[1743912498512,9.80302319,1811.1,1810.8,0.43520234]
[1743912499149,9.80302319,1811.1,1810.9,0.17273311]
[1743912499343,0.8153755,1811.0,1810.9,0.17273311]
[1743912500120,5.93781319,1811.1,1810.9,0.17273311]
[1743912500626,5.93781319,1811.1,1810.7,9.80178]
[1743912500963,5.93781319,1811.1,1810.8,0.17273131]
[1743912501350,5.93781319,1811.1,1810.9,0.17273131]
[1743912501723,5.93781319,1811.1,1810.7,9.80178]
[1743912502261,0.59378132,1811.0,1810.7,9.80178]
[1743912502463,4.66345,1811.1,1810.8,0.17273492]
[1743912502980,4.2153419,1811.2,1810.9,4.03812492]
[1743912503167,6.37969328,1811.4,1811.0,0.8015]
[1743912503168,14.45945518,1811.4,1811.0,0.8015]
[1743912503365,18.32394518,1811.4,1811.0,4.66668]
[1743912503521,14.45945518,1811.4,1811.0,4.66668]
[1743912503863,3.86464,1811.3,1811.0,4.66668]
[1743912504068,3.86464,1811.3,1811.0,0.8015]
[1743912504368,3.86464,1811.3,1810.9,4.66696]
[1743912504573,3.86464,1811.3,1811.0,0.17271706]
[1743912504932,3.86464,1811.3,1810.9,4.66696]
[1743912505133,8.0803419,1811.2,1810.8,3.86567]
[1743912505363,12.7391619,1811.2,1810.8,8.99467]
[1743912505532,2.02379217,1811.3,1810.9,0.7777]
[1743912505743,14.45962518,1811.4,1811.0,3.86519]
[1743912506058,18.32418518,1811.4,1811.0,4.03790981]
[1743912506223,20.2359837,1811.4,1811.0,4.03790981]
[1743912506527,20.2359837,1811.4,1811.0,3.86519]
[1743912507884,3.86468,1811.3,1810.9,4.64316]
[1743912508583,3.86468,1811.3,1811.0,0.1727153]
[1743912509183,7.72946,1811.3,1811.0,0.1727153]
[1743912509396,3.8649,1811.2,1810.9,0.7777]
[1743912510048,3.8649,1811.2,1811.0,0.17272149]
[1743912510349,3.8649,1811.2,1810.9,0.7777]
[1743912511596,3.8649,1811.2,1811.0,0.2622261]
[1743912511891,3.8649,1811.2,1811.0,0.43494724]
[1743912512102,3.8649,1811.2,1811.0,0.2622261]
[1743912517787,5.88830937,1811.3,1811.0,0.2622261]
[1743912519814,9.75307937,1811.3,1811.0,0.2622261]
[1743912520108,5.88830937,1811.3,1811.0,0.2622261]
[1743912520612,9.75312937,1811.3,1811.0,0.2622261]
[1743912521015,7.67483558,1811.3,1811.0,0.2622261]
[1743912521319,8.0801819,1811.2,1811.0,0.2622261]
[1743912521467,3.86505,1811.1,1811.0,0.2622261]
[1743912521668,3.86505,1811.1,1810.8,5.129]
[1743912521886,8.9069819,1811.0,1810.6,9.77001]
[1743912522101,8.9069819,1811.0,1810.6,11.133642]
[1743912522304,8.9069819,1811.0,1810.7,0.17273905]
[1743912522872,8.9069819,1811.0,1810.8,0.17273905]
[1743912523072,3.86548,1810.9,1810.8,0.17273905]
[1743912523273,3.86548,1810.9,1810.5,8.9863]
[1743912523474,3.86548,1810.9,1810.5,10.349972]
[1743912523768,3.86548,1810.9,1810.6,0.17274521]
[1743912524170,3.86548,1810.9,1810.7,0.17274521]
[1743912524673,3.86548,1810.9,1810.5,10.350972]
[1743912525073,3.86548,1810.9,1810.6,0.17274869]
[1743912525771,3.86548,1810.9,1810.7,0.17274869]
[1743912525971,3.86548,1810.9,1810.5,10.350972]
[1743912526183,7.73111,1810.9,1810.5,10.350972]
[1743912526580,4.28356769,1810.9,1810.6,0.26273943]
[1743912526883,4.28356769,1810.9,1810.6,0.43549002]
[1743912527083,4.28356769,1810.9,1810.6,4.30159002]
[1743912527295,4.28356769,1810.9,1810.7,0.17275059]
[1743912527804,4.28356769,1810.9,1810.8,0.26273943]
[1743912528382,4.28356769,1810.9,1810.6,0.17274968]
[1743912528574,4.28356769,1810.9,1810.7,0.26273943]
[1743912528976,4.28356769,1810.9,1810.5,10.350972]
[1743912529206,4.28356769,1810.9,1810.6,0.26273943]
[1743912529597,4.28356769,1810.9,1810.7,0.17274967]
[1743912529798,6.81674214,1810.9,1810.7,0.17274967]
[1743912530001,6.81674214,1810.9,1810.8,0.26273943]
[1743912530180,6.81674214,1810.9,1810.5,10.350972]
[1743912530512,6.81674214,1810.9,1810.6,0.43548901]
[1743912531188,6.81674214,1810.9,1810.7,0.17274958]
[1743912531590,10.68237214,1810.9,1810.8,0.26273943]
[1743912531797,10.68237214,1810.9,1810.5,8.9873]
[1743912532007,10.68237214,1810.9,1810.6,0.43549116]
[1743912532206,10.68238214,1810.9,1810.6,0.43549116]
[1743912532417,3.86571,1810.8,1810.6,0.43549116]
[1743912532618,3.86571,1810.8,1810.6,0.26273943]
[1743912534123,6.81674214,1810.9,1810.6,0.26273943]
[1743912535636,3.86571,1810.8,1810.6,0.26273943]
[1743912537103,7.18157445,1810.7,1810.6,0.26273943]
[1743912537502,3.86649,1810.5,1810.2,5.8981]
[1743912537727,6.39966445,1810.5,1810.3,0.17278225]
[1743912538240,6.39966445,1810.5,1810.2,5.8981]
[1743912539534,10.26616445,1810.5,1810.2,5.114]
[1743912539836,4.65697,1810.4,1810.1,10.69157943]
[1743912541236,3.86678,1810.3,1810.1,10.69157943]
[1743912541436,8.09108826,1810.3,1810.1,5.57657943]
[1743912541633,8.09108826,1810.3,1810.2,0.24192556]
[1743912542038,8.09108826,1810.3,1810.1,5.57657943]
[1743912542039,3.86697,1810.2,1810.1,5.57657943]
[1743912542533,8.09108826,1810.3,1810.1,5.57657943]
[1743912543217,9.39671678,1810.3,1810.1,5.57657943]
[1743912543403,9.39671678,1810.3,1809.8,10.593873]
[1743912543603,3.86706,1810.2,1809.9,0.17281298]
[1743912544119,3.86706,1810.2,1809.8,10.593873]
[1743912544300,3.86706,1810.2,1809.8,5.471873]
[1743912544505,7.73422,1810.2,1809.8,5.471873]
[1743912544701,3.86721,1810.1,1809.8,1.604053]
[1743912545038,3.8674,1810.0,1809.7,5.12]
[1743912545409,7.73497,1810.0,1809.6,4.69305]
[1743912545602,7.73497,1810.0,1809.6,8.99025]
[1743912545807,3.8674,1810.0,1809.6,5.122]
[1743912546316,3.86774,1809.9,1809.5,9.81526]
[1743912546520,3.86774,1809.9,1809.5,11.183653]
[1743912546723,8.09234826,1809.7,1809.6,0.17283835]
[1743912547422,4.69621,1809.5,1809.1,0.9248]
[1743912547730,7.73763,1809.4,1809.1,0.1]
[1743912547938,3.86877,1809.4,1809.1,0.1]
[1743912549544,8.09322826,1809.3,1809.1,0.1]
[1743912549746,3.86911,1809.2,1809.1,0.1]
[1743912550646,8.92082826,1809.3,1809.1,0.1]
[1743912550837,12.78992826,1809.3,1809.1,0.1]
[1743912551042,14.15812497,1809.3,1809.1,0.1]
[1743912551241,10.28902497,1809.3,1809.1,0.1]
[1743912552259,14.15810497,1809.3,1809.1,0.1]
[1743912552717,10.28902497,1809.3,1809.1,0.1]
[1743912553851,3.86911,1809.2,1809.1,0.1]
[1743912554052,9.33905096,1809.3,1809.1,0.1]
[1743912554257,8.51145096,1809.3,1809.1,0.1]
[1743912554455,0.4182227,1809.3,1809.1,0.1]
[1743912554759,3.86873,1809.4,1809.1,0.9248]
[1743912554961,7.73759,1809.4,1809.1,0.9248]
[1743912555460,3.86873,1809.4,1809.1,0.9248]
[1743912556250,8.92038826,1809.5,1809.1,0.9248]
[1743912556580,8.09278826,1809.5,1809.2,0.25043493]
[1743912556921,8.09278826,1809.5,1809.1,4.79396]
[1743912557461,8.09278826,1809.5,1809.2,0.25043493]
[1743912557963,8.51009808,1809.5,1809.1,10.042869]
[1743912558532,8.51009808,1809.5,1809.2,0.25043493]
[1743912559027,8.51009808,1809.5,1809.3,0.25043493]
[1743912559366,8.51009808,1809.5,1809.1,4.79396]
[1743912560068,8.51009808,1809.5,1809.2,0.25043493]
[1743912560267,10.34434716,1809.5,1809.2,0.25043493]
[1743912560568,4.69797,1809.4,1809.1,0.1]
[1743912560767,4.69797,1809.4,1809.3,0.25043493]
[1743912561460,4.69797,1809.4,1809.1,0.1]
[1743912561629,4.69797,1809.4,1809.3,0.25043493]
[1743912561830,6.20220172,1809.4,1809.1,0.1]
[1743912562039,6.20220172,1809.4,1809.2,0.25043493]
[1743912562238,6.20220172,1809.4,1809.1,0.1]
[1743912562434,6.20220172,1809.4,1809.3,0.25043493]
[1743912562873,6.20220172,1809.4,1809.1,0.1]
[1743912563093,6.20220172,1809.4,1809.3,0.25043493]
[1743912563370,6.20220172,1809.4,1809.1,0.1]
[1743912563876,10.07105172,1809.4,1809.2,0.25043493]
[1743912564084,1.00710517,1809.3,1809.2,0.25043493]
[1743912564262,10.07105172,1809.4,1809.1,0.1]
[1743912564450,10.07105172,1809.4,1809.2,0.2503271]
[1743912564651,10.07105172,1809.4,1809.1,0.1]
[1743912564839,10.07105172,1809.4,1809.3,0.2503271]
[1743912565040,10.07105172,1809.4,1809.1,0.1]
[1743912565241,10.07105172,1809.4,1809.3,0.2503271]
[1743912565780,10.07105172,1809.4,1809.1,0.1]
[1743912566264,3.86889,1809.3,1809.2,0.2503271]
[1743912566469,3.86889,1809.3,1809.1,0.1]
[1743912566669,3.86889,1809.3,1809.2,0.2503271]
[1743912567162,3.86889,1809.3,1809.1,0.1]
[1743912567367,3.86889,1809.3,1809.2,0.25048881]
[1743912567547,4.87599917,1809.3,1809.2,0.25048881]
[1743912567747,4.87599917,1809.3,1809.1,0.1]
[1743912567981,4.87599917,1809.3,1809.2,0.25048881]
[1743912568167,9.10030743,1809.3,1809.2,0.25048881]
[1743912568476,3.86911,1809.2,1809.1,0.1]
[1743912569492,1.29694174,1809.2,1809.1,0.1]
[1743912569658,3.86889,1809.3,1809.1,0.1]
[1743912571493,3.86889,1809.3,1809.2,0.25059663]
[1743912571691,3.86889,1809.3,1809.1,0.1]
[1743912571901,3.86889,1809.3,1809.2,0.25059663]
[1743912572065,4.46761098,1809.3,1809.1,0.1]
[1743912572264,4.46761098,1809.3,1809.2,0.25059663]
[1743912572489,4.46761098,1809.3,1809.1,0.1]
[1743912572693,4.46761098,1809.3,1809.2,0.25059663]
[1743912573168,4.46761098,1809.3,1809.1,0.1]
[1743912573369,4.46761098,1809.3,1809.2,0.25059663]
[1743912573702,4.46761098,1809.3,1809.1,0.1]
[1743912573874,4.46761098,1809.3,1809.2,0.25059663]
[1743912574074,4.46761098,1809.3,1809.1,0.1]
[1743912574278,4.46761098,1809.3,1809.2,0.25059663]
[1743912574485,4.46761098,1809.3,1809.1,0.1]
[1743912574703,4.46761098,1809.3,1809.2,0.25075838]
[1743912574882,4.46761098,1809.3,1809.1,0.1]
[1743912575077,0.59872098,1809.3,1809.2,0.25075838]
[1743912575363,3.86868,1809.4,1809.2,0.25075838]
[1743912575564,3.86868,1809.4,1809.1,0.1]
[1743912575804,6.86868,1809.4,1809.3,0.25075838]
[1743912576011,6.86868,1809.4,1809.1,0.1]
[1743912576166,6.86868,1809.4,1809.3,0.25075838]
[1743912576366,3.8689,1809.3,1809.1,0.1]
[1743912576566,3.8689,1809.3,1809.2,0.17289758]
[1743912585631,3.8689,1809.3,1809.1,0.1]
[1743912586317,7.73798,1809.3,1809.1,0.1]
[1743912586520,7.73798,1809.3,1809.2,0.25059666]
[1743912586722,8.74372568,1809.3,1809.1,0.1]
[1743912586884,4.87464568,1809.3,1809.2,0.25054274]
[1743912587084,4.87464568,1809.3,1809.1,0.1]
[1743912587285,3.8689,1809.3,1809.2,0.25054274]
[1743912587686,6.40657378,1809.3,1809.2,0.17290118]
[1743912587984,6.40657378,1809.3,1809.2,0.42344392]
[1743912588204,3.86911,1809.2,1809.1,0.1]
[1743912588822,3.86911,1809.2,1809.1,0.27291081]
[1743912589017,10.8608011,1809.2,1809.1,0.27291081]
[1743912599732,10.8608011,1809.2,1809.1,0.1]
[1743912601436,13.8608011,1809.2,1809.1,0.1]
[1743912602137,13.8608011,1809.2,1809.1,0.35075841]
[1743912603231,18.0904628,1809.2,1809.1,0.35075841]
[1743912605337,13.8608011,1809.2,1809.1,0.35075841]
[1743912605913,10.8608011,1809.2,1809.1,0.35075841]
[1743912606114,9.83323272,1809.2,1809.1,0.35075841]
[1743912610147,10.66623272,1809.2,1809.1,0.35075841]
[1743912611022,9.83323272,1809.2,1809.1,0.35075841]
[1743912613746,12.37125121,1809.2,1809.1,0.35075841]
[1743912614481,15.37125121,1809.2,1809.1,0.35075841]
[1743912614628,17.37856633,1809.2,1809.1,0.35075841]
[1743912626066,5.96412272,1809.2,1809.1,0.35075841]
[1743912626688,5.96412272,1809.2,1809.1,0.52366554]
[1743912627294,9.83323272,1809.2,1809.1,0.52366554]
[1743912628478,15.37125121,1809.2,1809.1,0.35075841]
[1743912628667,17.37448633,1809.2,1809.1,0.35075841]
[1743912630298,14.83646784,1809.2,1809.1,0.35075841]
[1743912630484,12.83323272,1809.2,1809.1,0.35075841]
[1743912631086,9.83323272,1809.2,1809.1,0.35075841]
[1743912631287,9.83323272,1809.2,1809.1,0.49274527]
[1743912638826,12.83323272,1809.2,1809.1,0.49274527]
[1743912646349,8.96412272,1809.2,1809.1,0.49274527]
[1743912646838,8.96412272,1809.2,1809.1,0.6656531]
[1743912647534,3.0,1809.2,1809.1,0.6656531]
[1743912647929,6.86911,1809.2,1809.1,0.6656531]
[1743912648600,7.942911,1809.2,1809.1,0.6656531]
[1743912648806,7.942911,1809.2,1809.1,0.49274527]
[1743912665521,6.86911,1809.2,1809.1,0.49274527]
[1743912676026,3.0,1809.2,1809.1,0.49274527]
[1743912676372,3.0,1809.2,1809.1,0.66565346]
[1743912677676,6.86911,1809.2,1809.1,0.66565346]
[1743912678336,6.86911,1809.2,1809.1,0.49274527]
[1743912678636,8.025201,1809.2,1809.1,0.49274527]
[1743912682685,10.56321949,1809.2,1809.1,0.49274527]
[1743912685166,17.29674221,1809.2,1809.1,0.49274527]
[1743912686590,21.29674221,1809.2,1809.1,0.49274527]
[1743912689992,21.29674221,1809.2,1809.1,0.49278631]
[1743912700220,21.29674221,1809.2,1809.1,0.49324465]
[1743912701099,21.84674221,1809.2,1809.1,0.49324465]
[1743912701297,26.96174221,1809.2,1809.1,0.1]
[1743912703627,30.14158279,1809.2,1809.1,1e-05]
[1743912703825,6.87061,1808.5,1808.4,0.1729665]
[1743912704332,6.87061,1808.5,1808.4,0.39324465]
[1743912704631,6.87061,1808.5,1808.3,0.8235]
[1743912704632,6.87082,1808.4,1808.3,0.8235]
[1743912704840,9.40883849,1808.4,1808.3,0.8235]
[1743912705926,13.27985849,1808.4,1808.2,0.7762]
[1743912706345,3.87103,1808.3,1808.2,0.7762]
[1743912706495,6.87103,1808.3,1808.2,0.7762]
[1743912706700,7.27729487,1808.3,1808.2,1.16944465]
[1743912707237,3.40626487,1808.3,1808.2,1.16944465]
[1743912708641,8.06879487,1808.3,1808.2,0.39324465]
[1743912708947,9.18361036,1808.3,1808.2,0.39324465]
[1743912709242,6.87125,1808.2,1808.1,0.1]
[1743912709399,9.40926849,1808.2,1808.1,0.1]
[1743912709603,9.40926849,1808.2,1808.1,0.4949979]
[1743912709913,10.96855638,1808.2,1808.1,0.4949979]
[1743912710314,14.96855638,1808.2,1808.1,0.4949979]
[1743912712102,20.9326791,1808.2,1808.1,0.4949979]
[1743912713358,16.9326791,1808.2,1808.1,0.4949979]
[1743912716261,20.9326791,1808.2,1808.1,0.4949979]
[1743912721886,21.7080791,1808.2,1808.1,0.4949979]
[1743912722556,21.7080791,1808.2,1808.1,0.1]
[1743912723741,21.7080791,1808.2,1808.1,0.49909855]
[1743912726782,21.6897791,1808.2,1808.1,0.49909855]
[1743912726986,3.0,1807.5,1807.2,0.7843]
[1743912727291,3.0,1807.5,1807.3,0.36584033]
[1743912727587,6.87276,1807.5,1807.3,0.36584033]
[1743912727953,3.0,1807.5,1807.3,0.36584033]
[1743912728152,3.0,1807.5,1807.4,0.7843]
[1743912728397,3.0,1807.5,1807.4,1.15081526]
[1743912728752,6.87275,1807.5,1807.4,1.15081526]
[1743912728951,8.20109885,1807.5,1807.4,0.36651526]
[1743912729149,3.87329,1807.3,1807.1,0.8843]
[1743912729365,3.87339,1807.2,1807.1,0.8843]
[1743912729656,4.28448203,1807.2,1807.1,0.8843]
[1743912730348,3.87329,1807.3,1807.1,0.8843]
[1743912730770,3.0,1807.3,1807.1,0.8843]
[1743912731051,6.8729,1807.5,1807.1,0.8843]
[1743912731783,6.8729,1807.5,1807.2,0.8299]
[1743912731784,8.96776963,1807.5,1807.2,0.8299]
[1743912732084,12.84070963,1807.5,1807.2,0.8299]
[1743912733074,8.96776963,1807.5,1807.2,0.8299]
[1743912733274,12.84070963,1807.5,1807.2,0.8299]
[1743912733586,5.96412272,1807.6,1807.5,0.8299]
[1743912733761,12.96412272,1807.6,1807.5,0.8299]
[1743912734658,12.96412272,1807.6,1807.5,1.1990346]
[1743912735002,8.96412272,1807.6,1807.5,1.1990346]
[1743912736283,9.83588272,1808.0,1807.6,4.70232]
[1743912736599,9.83588272,1808.0,1807.7,5.07056143]
[1743912736804,3.0,1807.9,1807.8,0.8299]
[1743912737178,3.0,1807.9,1807.8,1.19825143]
[1743912744604,6.87189,1807.9,1807.8,1.19825143]
[1743912744814,6.87189,1807.9,1807.8,0.36835143]
[1743912745617,3.0,1807.9,1807.8,0.36835143]
[1743912747300,9.83532272,1808.3,1807.9,0.7629]
[1743912747497,9.83532272,1808.3,1808.0,0.7629]
[1743912747718,4.0,1808.1,1808.0,1.12933428]
[1743912748295,3.0,1808.2,1808.0,1.12933428]
[1743912749928,3.0,1808.2,1808.0,5.00101428]
[1743912750521,3.0,1808.2,1808.0,5.00089428]
[1743912752525,3.0,1808.2,1808.0,1.12933428]
[1743912752822,3.0,1808.2,1808.0,5.00100428]
[1743912755326,3.0,1808.2,1808.0,5.88821271]
[1743912756428,3.87051,1808.6,1808.2,4.63402]
[1743912756733,10.20325634,1808.7,1808.4,4.63372]
[1743912756901,3.0,1808.6,1808.4,4.63372]
[1743912757097,3.0,1808.6,1808.5,0.36470677]
[1743912757326,7.0,1808.6,1808.5,0.36470677]
[1743912757654,3.0,1808.6,1808.4,4.63372]
[1743912759919,5.96412272,1808.7,1808.4,0.7629]
[1743912760253,5.96412272,1808.7,1808.5,0.36470677]
[1743912763054,9.83434272,1808.7,1808.5,0.36470677]
[1743912763957,3.0,1808.8,1808.5,0.36470677]
[1743912764140,3.0,1808.8,1808.6,0.8019]
[1743912764348,8.10877362,1809.0,1808.6,4.67214]
[1743912764662,14.48415511,1809.1,1808.7,4.23273231]
[1743912764857,8.10845362,1809.1,1808.7,4.23273231]
[1743912765359,8.10845362,1809.1,1808.7,8.10281231]
[1743912765568,8.10845362,1809.1,1808.7,5.12315354]
[1743912767957,8.10845362,1809.1,1808.7,1.25307354]
[1743912768255,3.86967,1809.0,1808.7,1.25307354]
[1743912773383,3.86967,1809.0,1808.7,5.12324354]
[1743912774744,3.86967,1809.0,1808.7,4.23277231]
[1743912779695,9.30838876,1809.1,1808.7,4.23277231]
[1743912779853,13.17785876,1809.1,1808.7,4.23277231]
[1743912780702,13.17787876,1809.1,1808.7,4.23277231]
[1743912781291,3.86963,1809.0,1808.7,0.36260231]
[1743912781481,9.30838876,1809.1,1808.7,4.23276231]
[1743912781681,10.62614064,1809.1,1808.7,4.23276231]
[1743912782193,14.49562064,1809.1,1808.7,4.23276231]
[1743912782406,3.86956,1809.0,1808.7,0.36260231]
[1743912782572,8.10896362,1808.9,1808.7,0.36260231]
[1743912782971,11.97892362,1808.9,1808.7,0.36260231]
[1743912783175,1.19789236,1808.8,1808.7,0.36260231]
[1743912783873,5.06785236,1808.8,1808.7,0.36260231]
[1743912784713,5.06785236,1808.8,1808.7,0.36100055]
[1743912785004,5.06785236,1808.8,1808.4,4.68391]
[1743912785390,5.06785236,1808.8,1808.5,0.36110841]
[1743912785595,4.37708524,1808.7,1808.5,0.36110841]
[1743912785912,0.50678524,1808.7,1808.5,0.36110841]
[1743912787410,5.06786236,1808.8,1808.5,0.36110841]
[1743912791119,4.23913362,1808.7,1808.5,0.36110841]
[1743912791339,3.87039,1808.6,1808.5,0.36110841]
[1743912791991,7.74097,1808.6,1808.3,0.17297031]
[1743912792175,7.74097,1808.6,1808.5,0.36151296]
[1743912792378,9.01597036,1808.6,1808.3,0.17297031]
[1743912792613,9.01597036,1808.6,1808.5,0.36151296]
[1743912792813,9.01597036,1808.6,1808.2,4.692]
[1743912793013,9.01597036,1808.6,1808.5,0.36151296]
[1743912793221,12.43258167,1808.6,1808.2,4.692]
[1743912793515,12.43258167,1808.6,1808.3,0.17297271]
[1743912793719,12.43258167,1808.6,1808.3,0.53448567]
[1743912794217,12.43258167,1808.6,1808.3,0.36151296]
[1743912794404,3.87061,1808.5,1808.3,0.36151296]
[1743912795235,8.56200167,1808.6,1808.3,0.36151296]
[1743912795736,3.41661131,1808.6,1808.4,0.8209]
[1743912795917,3.41661131,1808.6,1808.4,1.18341088]
[1743912796300,3.0,1808.6,1808.4,1.18341088]
[1743912798634,6.87042,1808.6,1808.4,1.18341088]
[1743912800212,3.0,1808.6,1808.4,1.18341088]
[1743912802741,6.8704,1808.6,1808.4,1.18341088]
[1743912802935,7.28637942,1808.6,1808.4,1.18341088]
[1743912804540,12.69654972,1808.6,1808.4,0.36251088]
[1743912804706,12.69654972,1808.6,1808.2,4.6985]
[1743912804906,12.69654972,1808.6,1808.3,0.36253786]
[1743912807854,8.82594972,1808.6,1808.3,0.36253786]
[1743912808147,12.69649972,1808.6,1808.3,0.36253786]
[1743912809721,15.23623833,1808.6,1808.3,0.36253786]
[1743912809933,11.36568833,1808.6,1808.3,0.36253786]
[1743912810123,9.82611803,1808.6,1808.3,0.36253786]
[1743912810527,3.86999,1808.8,1808.4,4.65363]
[1743912810727,6.40972861,1808.8,1808.5,0.36246517]
[1743912813846,3.86999,1808.8,1808.5,0.36246517]
[1743912814042,3.86999,1808.8,1808.5,4.23305517]
[1743912814426,3.86999,1808.8,1808.5,0.36246517]
[1743912818977,7.69488,1808.9,1808.5,4.23299517]
[1743912819135,11.92670865,1808.9,1808.5,5.12166269]
[1743912819841,15.79662865,1808.9,1808.5,5.12166269]
[1743912821270,15.79662865,1808.9,1808.5,4.23299517]
[1743912823380,3.86999,1808.8,1808.5,0.36246517]
[1743912824669,11.92670865,1808.9,1808.5,4.23299517]
[1743912824883,11.10160865,1808.9,1808.6,0.7813]
[1743912825255,3.86996,1808.8,1808.7,0.36192569]
[1743912829085,3.86996,1808.8,1808.6,0.7813]
[1743912829451,3.86996,1808.8,1808.7,0.36192569]
[1743912829757,3.86996,1808.8,1808.6,0.7813]
[1743912829960,3.86996,1808.8,1808.7,0.36192569]
[1743912830456,5.36711686,1808.8,1808.7,0.36192569]
[1743912830961,9.23728686,1808.8,1808.5,0.17296346]
[1743912831162,7.74013,1808.8,1808.6,0.36192569]
[1743912831362,3.87018,1808.7,1808.6,0.36192569]
[1743912831765,3.87018,1808.7,1808.4,0.7813]
[1743912831993,3.87018,1808.7,1808.5,0.36192569]
[1743912832415,8.10200865,1808.7,1808.5,0.36192569]
[1743912832708,8.46839087,1808.6,1808.5,0.36192569]
[1743912833005,3.87066,1808.5,1808.1,3.87134]
[1743912833191,3.87066,1808.5,1808.1,7.74268]
[1743912833376,3.87066,1808.5,1808.2,0.17298153]
[1743912833615,3.87066,1808.5,1808.3,0.17298153]
[1743912833964,3.87066,1808.5,1808.1,7.74268]
[1743912834165,3.87066,1808.5,1808.1,8.595078]
[1743912834366,3.87066,1808.5,1808.2,0.17298055]
[1743912835105,8.10248865,1808.5,1808.3,0.17298055]
[1743912835463,8.10248865,1808.5,1808.1,3.87134]
[1743912835668,2.54010382,1808.4,1808.1,3.87134]
[1743912835867,2.54010382,1808.4,1808.1,4.72377]
[1743912836308,2.54010382,1808.4,1808.2,0.17298121]
[1743912836505,6.41093382,1808.4,1808.2,0.17298121]
[1743912836813,4.65883,1808.3,1808.2,0.17298121]
[1743912837106,7.65883,1808.3,1808.2,0.17298121]
[1743912837401,3.8715,1808.1,1807.9,0.17298121]
[1743912837603,2.54010382,1808.0,1807.9,0.17298121]
[1743912838505,2.54010382,1808.0,1807.7,3.8723]
[1743912838904,2.54010382,1808.0,1807.8,0.17302431]
[1743912839267,2.54010382,1808.0,1807.7,3.8723]
[1743912839688,8.9530459,1808.1,1807.7,3.8723]
[1743912839689,13.188608,1808.1,1807.7,3.8723]
[1743912840111,3.87169,1808.0,1807.6,8.52621]
[1743912840311,3.87169,1808.0,1807.6,9.378831]
[1743912840477,3.87169,1808.0,1807.7,0.17302462]
[1743912840810,3.87169,1808.0,1807.7,4.04533462]
[1743912841130,9.316988,1808.1,1807.7,4.04533462]
[1743912841292,9.316988,1808.1,1807.7,3.87231]
[1743912841686,8.529188,1808.1,1807.8,0.32333375]
[1743912841882,8.529188,1808.1,1807.8,1.09873375]
[1743912843982,4.657688,1808.1,1807.8,4.97080375]
[1743912844188,3.87126,1808.2,1807.8,4.97080375]
[1743912844388,3.87126,1808.2,1807.9,3.87188]
[1743912844815,3.87126,1808.2,1807.8,8.51954]
[1743912845024,3.87126,1808.2,1808.0,0.32333375]
[1743912845225,3.87126,1808.2,1807.8,8.51954]
[1743912845389,3.87126,1808.2,1808.1,0.32333375]
[1743912845591,9.48950489,1808.2,1807.8,4.64747]
[1743912845821,9.48950489,1808.2,1808.1,0.32333375]
[1743912846026,9.48950489,1808.2,1807.8,4.64747]
[1743912846527,9.48950489,1808.2,1807.9,0.32333375]
[1743912848930,5.61809489,1808.2,1807.9,0.32333375]
[1743912849107,11.9361021,1808.3,1807.9,4.19520375]
[1743912849628,15.8072921,1808.3,1807.9,4.19520375]
[1743912850025,8.1066021,1808.3,1807.9,4.19520375]
[1743912850330,8.1066021,1808.3,1808.0,0.8038]
[1743912850511,8.1066021,1808.3,1808.1,0.32476092]
[1743912850715,9.30434631,1808.3,1808.1,0.32476092]
[1743912851189,13.17553631,1808.3,1808.1,0.32476092]
[1743912852410,3.87125,1808.2,1808.1,0.32476092]
[1743912853132,9.30434631,1808.3,1808.1,0.32476092]
[1743912853621,13.17553631,1808.3,1808.1,0.32476092]
[1743912854221,10.59987272,1808.5,1808.1,0.32476092]
[1743912854426,3.0,1808.4,1808.1,4.19611092]
[1743912856531,14.47068272,1808.5,1808.1,4.19611092]
[1743912856910,10.59987272,1808.5,1808.1,4.19611092]